bitfinex/quotes_ETHUSD_20241217
["timestamp","ask_amount","ask_price","bid_price","bid_amount"]
[1734463410627,1.18315302,3934.4,3933.8,0.7708]
[1734463411151,1.05472028,3934.4,3933.8,0.7708]
[1734463411404,1.05472028,3934.5,3934.0,0.8002]
[1734463411653,0.0481629,3935.1,3934.2,0.8002]
[1734463411654,1.05472028,3934.8,3934.2,0.8002]
[1734463411867,0.0481629,3935.1,3934.2,0.8002]
[1734463411868,1.10288318,3935.1,3934.3,0.29999169]
[1734463412276,1.05472028,3934.9,3934.2,0.8002]
[1734463412581,1.05472028,3934.6,3934.2,0.8002]
[1734463412879,1.05472028,3934.7,3934.2,0.8002]
[1734463413220,1.58199762,3934.9,3934.2,0.8002]
[1734463413221,1.05472028,3934.9,3934.2,0.8002]
[1734463413935,1.05472028,3935.0,3934.2,0.8002]
[1734463414154,1.10288318,3935.1,3934.3,0.29745008]
[1734463414344,0.0481629,3935.1,3934.3,0.29745008]
[1734463415118,0.0481629,3935.1,3934.4,0.8002]
[1734463417285,1.05472028,3934.9,3934.4,0.8002]
[1734463418078,1.05472028,3934.8,3934.4,0.8002]
[1734463419726,1.05472028,3934.7,3934.4,0.8002]
[1734463419971,1.05472028,3934.7,3933.8,0.8002]
[1734463420122,1.05472028,3934.6,3933.8,0.8002]
[1734463421372,1.05472028,3934.7,3933.8,0.8002]
[1734463421935,1.05472028,3935.0,3934.0,0.8002]
[1734463422276,0.0481629,3935.1,3934.2,0.8002]
[1734463422277,1.10288318,3935.1,3934.2,0.8002]
[1734463422624,1.10288318,3935.1,3934.3,0.55]
[1734463422859,1.10288318,3935.1,3934.1,0.55]
[1734463423020,1.10288318,3935.1,3934.2,0.8002]
[1734463423226,1.10288318,3935.1,3934.3,0.55]
[1734463423426,1.10288318,3935.1,3934.4,0.13502]
[1734463423924,1.05472028,3935.0,3934.4,0.13502]
[1734463424207,1.05472028,3935.0,3934.2,0.8002]
[1734463427582,1.10288318,3935.1,3934.2,0.8002]
[1734463427927,1.05472028,3935.0,3934.2,0.8002]
[1734463428830,1.05472028,3934.9,3934.2,0.8002]
[1734463429030,1.05472028,3934.8,3934.2,0.8002]
[1734463429258,1.05472028,3934.7,3934.2,0.8002]
[1734463430031,2.15744358,3935.1,3934.2,0.8002]
[1734463430032,1.05472028,3934.8,3934.2,0.8002]
[1734463430229,1.05472028,3934.7,3934.2,0.8002]
[1734463430772,1.05472028,3934.6,3934.2,0.8002]
[1734463431764,1.05472028,3934.6,3933.8,0.8284]
[1734463431969,1.05472028,3934.5,3933.8,0.8284]
[1734463432148,1.05472028,3934.5,3934.2,0.1]
[1734463432533,1.05472028,3934.6,3934.3,0.8284]
[1734463432765,1.05472028,3934.7,3934.3,0.8284]
[1734463432981,1.05472028,3934.6,3934.3,0.8284]
[1734463436739,1.05472028,3934.6,3934.2,0.1]
[1734463437076,1.05472028,3934.5,3934.2,0.1]
[1734463437279,1.05472028,3934.6,3934.2,0.1]
[1734463437981,1.05472028,3934.7,3934.2,0.1]
[1734463438179,1.05472028,3935.0,3934.3,0.8284]
[1734463438386,1.10288318,3935.1,3934.3,0.8284]
[1734463438585,0.0481629,3935.1,3934.5,0.8284]
[1734463438748,0.0481629,3935.1,3934.7,0.8284]
[1734463439480,0.0481629,3935.1,3934.8,0.02541107]
[1734463439784,0.0481629,3935.1,3934.9,0.8284]
[1734463441079,0.0481629,3935.1,3935.0,0.02540986]
[1734463441276,0.0481629,3935.1,3934.8,0.8284]
[1734463441493,0.0481629,3935.1,3934.9,0.151624]
[1734463442860,0.0481629,3935.1,3934.5,0.8179]
[1734463443481,1.10288318,3935.1,3934.3,0.8179]
[1734463443855,1.05472028,3935.0,3934.3,0.8179]
[1734463444082,1.10288318,3935.1,3934.3,0.8179]
[1734463446315,1.05472028,3935.0,3934.3,0.8179]
[1734463446594,0.0481629,3935.1,3934.3,0.8179]
[1734463446595,1.10288318,3935.1,3934.3,0.8179]
[1734463446801,1.05472028,3935.0,3934.3,0.8179]
[1734463447617,1.05472028,3934.9,3934.3,0.8179]
[1734463448115,1.05472028,3934.9,3934.2,0.1]
[1734463448116,0.7814,3934.8,3934.2,0.1]
[1734463448323,1.83612028,3934.8,3934.2,0.1]
[1734463448472,1.05472028,3934.7,3934.2,0.1]
[1734463448919,1.83612028,3934.8,3934.2,0.1]
[1734463449272,1.05472028,3934.7,3934.2,0.1]
[1734463450073,1.05472028,3934.6,3934.2,0.1]
[1734463450484,1.05472028,3934.5,3934.2,0.1]
[1734463450678,0.7814,3934.8,3934.2,0.1]
[1734463450679,1.05472028,3934.6,3934.2,0.1]
[1734463451915,1.05472028,3935.0,3934.6,0.55]
[1734463452091,0.0481629,3935.1,3934.7,0.13679]
[1734463452287,0.0481629,3935.1,3934.8,0.8179]
[1734463452876,0.0481629,3935.1,3935.0,2.99220083]
[1734463453080,0.0481629,3935.1,3935.0,3.54220083]
[1734463453316,0.0481629,3935.1,3935.0,3.91009991]
[1734463457883,0.0481629,3935.1,3935.0,4.04704785]
[1734463458289,0.0481629,3935.1,3935.0,4.02164021]
[1734463458620,0.0481629,3935.1,3935.0,4.04704614]
[1734463459123,0.0481629,3935.1,3935.0,4.02164021]
[1734463459334,0.0481629,3935.1,3935.0,4.04704503]
[1734463459865,0.0481629,3935.1,3935.0,4.04696624]
[1734463460037,0.0481629,3935.1,3935.0,4.02156142]
[1734463460933,0.0481629,3935.1,3935.0,15.83696633]
[1734463461260,1.05472028,3936.9,3935.3,0.55]
[1734463461408,1.05472028,3937.3,3936.3,0.8179]
[1734463461611,1.05472028,3937.4,3936.3,0.8179]
[1734463462024,1.05472028,3937.3,3936.3,0.8179]
[1734463462224,1.05472028,3937.4,3936.3,0.8179]
[1734463462424,1.05472028,3937.3,3936.3,0.8179]
[1734463462838,2.36339762,3937.5,3936.3,0.8179]
[1734463462839,1.05472028,3937.4,3936.3,0.8179]
[1734463463409,1.83612028,3937.5,3936.3,0.8179]
[1734463463840,1.05472028,3937.4,3936.3,0.8179]
[1734463464041,1.83612028,3937.5,3936.3,0.8179]
[1734463464415,1.33413986,3937.5,3936.3,0.8179]
[1734463464805,2.38886014,3937.5,3936.3,0.8179]
[1734463465030,1.33413986,3937.5,3936.3,0.8179]
[1734463465337,2.38886014,3937.5,3936.3,0.8179]
[1734463465539,1.33413986,3937.5,3936.3,0.8179]
[1734463465943,0.23888601,3937.4,3936.3,0.8179]
[1734463470282,0.7814,3937.5,3936.3,0.8179]
[1734463471474,0.7814,3937.5,3936.4,0.0254014]
[1734463471629,0.7814,3937.5,3936.4,0.55]
[1734463472264,0.8079,3937.8,3936.5,0.8102]
[1734463472450,0.8079,3938.3,3937.0,2.17430083]
[1734463472766,0.8079,3938.6,3937.2,0.8102]
[1734463472927,1.58199762,3939.0,3937.2,0.8102]
[1734463472928,1.05472028,3939.0,3937.2,0.8102]
[1734463473132,0.1631037,3939.1,3938.7,2.17430083]
[1734463473355,0.1631037,3939.1,3938.8,0.02538846]
[1734463473865,0.1631037,3939.1,3938.9,0.8102]
[1734463479741,0.1631037,3939.1,3938.3,2.17430083]
[1734463479742,0.1631037,3939.1,3938.3,0.8102]
[1734463481703,0.1631037,3939.1,3938.3,2.98450083]
[1734463482354,0.1631037,3939.1,3938.4,0.0253858]
[1734463482558,0.1631037,3939.1,3938.3,3.35160641]
[1734463482761,0.1631037,3939.1,3938.4,0.33516064]
[1734463483480,0.1631037,3939.1,3938.7,2.17430083]
[1734463484096,0.1631037,3939.1,3938.6,0.8102]
[1734463484589,0.1631037,3939.1,3938.7,0.55]
[1734463485782,0.1631037,3939.1,3938.6,0.8102]
[1734463487493,0.1631037,3939.1,3938.8,0.8039]
[1734463487787,0.1631037,3939.1,3939.0,0.55]
[1734463487955,0.1631037,3939.1,3939.0,1.72100558]
[1734463488454,0.1631037,3939.1,3939.0,2.08967408]
[1734463489399,0.1631037,3939.1,3939.0,1.3539]
[1734463495397,0.1631037,3939.1,3939.0,0.8039]
[1734463495610,0.1631037,3939.1,3939.0,1.44068882]
[1734463496890,0.1631037,3939.1,3939.0,5.72646482]
[1734463497094,0.1631037,3939.1,3939.0,5.81191696]
[1734463498733,0.1631037,3939.1,3939.0,2.70108331]
[1734463498915,0.1631037,3939.1,3939.0,5.8120366]
[1734463499797,0.1631037,3939.1,3939.0,5.46874769]
[1734463501059,0.1631037,3939.1,3939.0,1.91874769]
[1734463501242,0.1631037,3939.1,3939.0,5.26223869]
[1734463502377,0.1631037,3939.1,3939.0,0.7479442]
[1734463502639,0.1631037,3939.1,3939.0,0.11115538]
[1734463502799,0.1631037,3939.1,3939.0,0.47826096]
[1734463503701,0.1631037,3939.1,3939.0,0.11115538]
[1734463504549,0.1631037,3939.1,3938.9,0.38968734]
[1734463504705,0.1631037,3939.1,3939.0,0.11156203]
[1734463504901,0.1631037,3939.1,3939.0,0.37911705]
[1734463505432,0.1631037,3939.1,3939.0,0.11156203]
[1734463506232,0.1631037,3939.1,3938.4,0.33516064]
[1734463506440,0.1631037,3939.1,3938.5,0.11157827]
[1734463506625,0.1631037,3939.1,3938.6,0.11157827]
[1734463506824,0.8228,3939.0,3938.7,0.11157827]
[1734463507027,0.8228,3939.0,3938.3,20.0]
[1734463507214,0.8228,3939.0,3938.4,0.11156799]
[1734463507415,0.8228,3939.0,3938.3,20.0]
[1734463507416,0.8228,3939.0,3938.5,0.11156484]
[1734463508205,0.8228,3939.0,3938.5,2.17430083]
[1734463508376,0.1631037,3939.1,3938.6,0.02538954]
[1734463508673,0.1631037,3939.1,3938.7,0.11154921]
[1734463508829,0.1631037,3939.1,3938.8,0.13693473]
[1734463509032,0.1631037,3939.1,3938.9,0.11154921]
[1734463509223,0.1631037,3939.1,3939.0,0.11154921]
[1734463509443,0.1631037,3939.1,3938.3,20.0]
[1734463509644,0.784,3939.0,3938.4,0.11151713]
[1734463510214,0.784,3939.0,3938.5,0.11151713]
[1734463510345,0.1631037,3939.1,3938.6,0.11151713]
[1734463510709,0.1631037,3939.1,3938.4,0.804]
[1734463510838,0.1631037,3939.1,3938.5,0.11149615]
[1734463511038,0.1631037,3939.1,3938.3,20.0]
[1734463511345,0.1631037,3939.1,3938.4,0.11151558]
[1734463511645,0.1631037,3939.1,3938.5,0.11151558]
[1734463511895,0.1631037,3939.1,3938.3,20.0]
[1734463511896,0.784,3939.0,3938.3,20.0]
[1734463518503,1.82979502,3939.0,3938.3,20.0]
[1734463518707,1.82979502,3939.0,3938.4,1.76713213]
[1734463518708,0.784,3939.0,3938.4,1.76713213]
[1734463518977,0.784,3939.0,3938.5,0.02538707]
[1734463519205,0.1631037,3939.1,3938.3,20.0]
[1734463519402,0.1631037,3939.1,3938.4,0.11131701]
[1734463519544,0.1631037,3939.1,3938.3,20.0]
[1734463519545,0.1631037,3939.1,3938.5,0.11131701]
[1734463519860,0.1631037,3939.1,3938.3,20.0]
[1734463520069,0.1631037,3939.1,3938.4,0.11131965]
[1734463520407,0.7624,3939.0,3938.3,20.0]
[1734463522543,0.7624,3939.0,3938.4,0.11133445]
[1734463522783,0.7624,3939.0,3938.3,20.0]
[1734463523481,0.7624,3939.0,3938.4,0.11134297]
[1734463523655,0.7624,3939.0,3938.3,20.0]
[1734463523855,0.7624,3939.0,3938.4,0.11133809]
[1734463524062,0.7624,3939.0,3938.3,20.0]
[1734463524258,0.7624,3939.0,3938.4,0.11134628]
[1734463524464,0.7624,3939.0,3938.3,20.0]
[1734463524660,0.7624,3939.0,3938.4,0.11134825]
[1734463524865,0.7624,3939.0,3938.3,20.0]
[1734463526384,0.7624,3939.0,3938.4,0.11137539]
[1734463526547,0.7624,3939.0,3938.3,20.0]
[1734463526749,0.7624,3939.0,3938.4,0.11137383]
[1734463526964,0.7624,3939.0,3938.3,20.0]
[1734463527164,0.7624,3939.0,3938.5,0.11136905]
[1734463527395,0.7624,3939.0,3938.3,20.0]
[1734463527598,0.7624,3939.0,3938.4,0.11139725]
[1734463527807,0.7624,3939.0,3938.5,0.11139725]
[1734463527979,0.7624,3939.0,3938.3,20.0]
[1734463528163,0.7624,3939.0,3938.4,0.11139703]
[1734463528368,0.7624,3939.0,3938.5,0.11139703]
[1734463528674,0.7624,3939.0,3938.3,20.0]
[1734463528992,0.7624,3939.0,3938.4,0.11142916]
[1734463529296,0.7624,3939.0,3938.5,0.11142916]
[1734463529471,0.7624,3939.0,3938.6,0.11142916]
[1734463529800,0.7624,3939.0,3938.3,20.0]
[1734463530106,0.7624,3939.0,3938.4,0.11146658]
[1734463530401,0.7624,3939.0,3938.5,0.1114704]
[1734463530564,0.7624,3939.0,3938.3,20.0]
[1734463530766,0.7624,3939.0,3938.4,0.11146916]
[1734463530964,0.7624,3939.0,3938.5,0.11146916]
[1734463531285,0.7624,3939.0,3938.6,0.11146916]
[1734463531490,0.7624,3939.0,3938.3,20.0]
[1734463531687,0.7624,3939.0,3938.4,0.11149902]
[1734463531903,0.7624,3939.0,3938.5,0.11149902]
[1734463532100,0.7624,3939.0,3938.6,0.11149902]
[1734463532302,0.7624,3939.0,3938.3,20.0]
[1734463532507,0.7624,3939.0,3938.4,0.11152996]
[1734463532667,0.7624,3939.0,3938.5,0.11152996]
[1734463532867,0.7624,3939.0,3938.6,0.11152996]
[1734463532868,0.69374488,3939.0,3938.6,0.11152996]
[1734463533103,0.69374488,3939.0,3938.4,0.02538764]
[1734463533307,0.69374488,3939.0,3938.5,0.11156735]
[1734463533482,0.69374488,3939.0,3938.6,0.11156814]
[1734463533690,0.69374488,3939.0,3938.7,0.11156814]
[1734463533870,0.69374488,3939.0,3938.3,20.0]
[1734463534068,0.69374488,3939.0,3938.4,0.13695436]
[1734463534373,0.69374488,3939.0,3938.5,0.11156363]
[1734463534588,0.69374488,3939.0,3938.6,0.11156363]
[1734463534838,0.69374488,3939.0,3938.7,0.11156363]
[1734463535146,0.1631037,3939.1,3938.8,0.11156363]
[1734463535287,0.1631037,3939.1,3938.9,0.11156363]
[1734463535496,0.1631037,3939.1,3939.0,0.11156363]
[1734463535697,0.1631037,3939.1,3939.0,0.45943055]
[1734463536921,0.1631037,3939.1,3939.0,0.45943506]
[1734463538910,0.9405037,3939.1,3939.0,0.45943506]
[1734463539127,0.9405037,3939.1,3939.0,0.11156814]
[1734463539604,0.1631037,3939.1,3939.0,0.11156814]
[1734463542200,0.1540804,3939.1,3939.0,0.11156814]
[1734463544011,0.1540804,3939.1,3939.0,0.66136401]
[1734463544638,2.09159005,3941.0,3940.4,1.3055]
[1734463544804,0.7774,3942.1,3940.9,2.17430083]
[1734463545002,0.7774,3942.1,3941.0,0.13673317]
[1734463545238,0.7774,3942.1,3941.1,0.11136401]
[1734463545558,0.7774,3942.1,3940.9,2.17430083]
[1734463545844,0.7774,3942.1,3941.0,0.11113624]
[1734463546012,0.7774,3942.1,3941.1,0.11113624]
[1734463546211,0.7774,3942.1,3941.0,0.22854371]
[1734463548917,0.7774,3942.1,3940.7,0.55]
[1734463549123,0.7774,3942.1,3940.6,3.0]
[1734463550003,0.7774,3942.1,3940.5,1.10348008]
[1734463551811,0.7774,3942.1,3940.5,3.27778091]
[1734463552018,0.77518697,3942.1,3940.5,2.52228091]
[1734463552222,0.77518697,3942.1,3940.2,0.8167]
[1734463555245,0.77518697,3942.1,3940.3,0.55]
[1734463556062,0.77518697,3942.1,3940.5,2.17430083]
[1734463556552,0.77518697,3942.1,3940.6,0.8167]
[1734463560593,0.92435518,3942.4,3941.4,0.8167]
[1734463560731,0.7982,3942.4,3941.5,0.29910008]
[1734463561378,0.7982,3942.4,3941.6,0.02536834]
[1734463561579,0.8184,3942.9,3941.5,0.29910008]
[1734463561881,0.12853134,3942.7,3941.5,0.29910008]
[1734463562081,0.1631037,3943.0,3941.8,0.7745]
[1734463562287,0.1631037,3943.0,3941.9,0.29488008]
[1734463563846,0.28765606,3943.0,3941.9,0.29488008]
[1734463564050,0.28765606,3943.0,3941.8,0.7745]
[1734463564051,0.8184,3942.9,3941.8,0.7745]
[1734463566367,0.8153258,3942.9,3941.8,0.7745]
[1734463566940,2.17430083,3942.9,3941.3,0.7745]
[1734463567287,2.53635,3942.7,3941.3,0.7745]
[1734463567450,2.17430083,3942.9,3941.3,0.7745]
[1734463567451,2.53649,3942.5,3941.3,0.7745]
[1734463567653,2.17430083,3942.9,3941.3,0.7745]
[1734463567852,2.53632,3942.8,3941.3,0.7745]
[1734463568181,0.28765606,3943.0,3941.4,0.02537079]
[1734463568487,0.28765606,3943.0,3941.3,0.7745]
[1734463568898,1.08744675,3943.0,3941.3,0.7745]
[1734463569094,3.62358675,3943.0,3941.3,0.7745]
[1734463569380,0.8184,3942.9,3941.3,0.7745]
[1734463569963,0.8184,3942.9,3941.3,2.94880083]
[1734463572397,0.8184,3942.9,3941.4,0.88567127]
[1734463572604,0.8184,3942.9,3941.5,1.08049721]
[1734463572744,0.8184,3942.9,3941.6,0.7745]
[1734463573249,0.1631037,3943.0,3942.2,0.7745]
[1734463573550,0.1631037,3943.0,3942.6,0.7745]
[1734463573751,0.1631037,3943.0,3942.7,0.29488008]
[1734463574999,0.1631037,3943.0,3942.8,0.7745]
[1734463577766,0.13143332,3943.0,3942.8,0.7745]
[1734463579089,0.13143332,3943.0,3942.9,2.94880083]
[1734463580572,0.13143332,3943.0,3942.9,0.7745]
[1734463582298,0.13143332,3943.0,3942.9,1.15195]
[1734463583366,0.8184,3945.5,3943.3,0.55]
[1734463583587,0.8184,3945.5,3943.8,0.7745]
[1734463584200,0.12601976,3945.4,3943.8,0.7745]
[1734463585968,2.17430083,3945.2,3943.8,0.7745]
[1734463586169,0.8184,3945.0,3943.8,0.7745]
[1734463586478,2.17430083,3944.8,3943.8,0.7745]
[1734463588201,0.8184,3944.7,3943.0,0.7745]
[1734463589873,2.17430083,3944.4,3943.0,0.7745]
[1734463590213,0.7529,3944.3,3943.0,0.7745]
[1734463590406,2.17430083,3944.0,3943.0,0.7745]
[1734463590927,0.7529,3944.3,3943.0,0.7745]
[1734463591127,0.39790802,3944.2,3943.0,0.7745]
[1734463592029,0.39790802,3944.2,3943.1,0.02535914]
[1734463592234,0.39790802,3944.2,3943.0,0.7745]
[1734463594698,0.8004,3944.6,3943.1,0.55]
[1734463594897,0.8004,3944.6,3943.0,0.8197]
[1734463595098,0.8004,3944.6,3943.3,0.55]
[1734463595633,0.8004,3944.6,3943.2,0.8197]
[1734463597707,0.8004,3944.6,3943.2,0.8197]
[1734463599430,2.17430083,3944.4,3943.2,0.8197]
[1734463599751,2.17430083,3944.0,3943.2,0.8197]
[1734463600550,0.8004,3944.2,3943.2,0.8197]
[1734463601814,0.8004,3944.6,3943.2,0.8197]
[1734463602051,1.03043206,3945.1,3943.4,0.8197]
[1734463602212,1.03043206,3945.1,3942.4,3.35870557]
[1734463602213,0.8004,3945.1,3943.6,0.8197]
[1734463602415,0.40265802,3945.0,3943.6,0.8197]
[1734463602853,0.40265802,3945.0,3943.7,0.93085218]
[1734463603163,0.40265802,3945.0,3943.8,0.93086614]
[1734463603316,0.40265802,3945.0,3943.1,2.19965416]
[1734463603317,0.40265802,3945.0,3944.0,0.8197]
[1734463609028,0.39958369,3945.0,3944.0,0.8197]
[1734463609855,2.39948714,3944.9,3944.0,0.8197]
[1734463610219,3.45136654,3944.9,3944.0,0.8197]
[1734463610544,1.0518794,3944.8,3944.0,0.8197]
[1734463611113,0.8041,3944.7,3943.4,0.789]
[1734463611321,1.0518794,3944.6,3943.4,0.789]
[1734463611618,1.64878668,3944.5,3943.4,0.789]
[1734463612170,2.5349,3945.0,3943.4,0.789]
[1734463612171,1.0518794,3945.0,3943.4,0.789]
[1734463612331,3.8041,3945.1,3943.6,0.789]
[1734463612332,1.0518794,3945.1,3943.6,0.789]
[1734463612530,3.7523742,3945.3,3943.1,0.02535282]
[1734463612531,3.22618023,3945.3,3943.8,0.789]
[1734463612722,3.22618023,3945.3,3943.7,0.11120605]
[1734463612723,3.22618023,3945.3,3944.0,0.789]
[1734463613355,1.0518794,3945.1,3944.0,0.789]
[1734463613768,1.0518794,3945.2,3944.0,0.789]
[1734463613935,0.57343734,3945.1,3944.0,0.789]
[1734463614363,1.0518794,3945.0,3944.0,0.789]
[1734463615167,1.62531674,3945.1,3944.0,0.789]
[1734463615328,1.0518794,3945.0,3944.0,0.789]
[1734463616071,1.0518794,3944.9,3944.0,0.789]
[1734463616477,1.0518794,3944.8,3944.0,0.789]
[1734463616649,1.8559794,3944.7,3944.0,0.789]
[1734463617374,1.0518794,3944.6,3944.0,0.789]
[1734463617675,1.0518794,3944.7,3944.0,0.789]
[1734463617838,1.71892745,3944.7,3944.0,0.789]
[1734463618457,1.0518794,3944.6,3944.0,0.789]
[1734463619578,1.0518794,3944.9,3944.2,0.789]
[1734463619874,1.0518794,3945.1,3944.3,0.11125598]
[1734463620180,1.0518794,3945.3,3944.4,0.90025374]
[1734463620349,1.0518794,3945.3,3944.6,0.789]
[1734463621150,1.0518794,3945.2,3944.6,0.789]
[1734463621801,0.1268259,3945.7,3944.6,0.789]
[1734463621802,1.0518794,3945.3,3944.6,0.789]
[1734463621947,1.0518794,3945.2,3944.6,0.789]
[1734463622147,0.94967139,3945.3,3944.6,0.789]
[1734463622352,0.94967139,3945.9,3945.2,2.17430083]
[1734463622561,3.17720209,3946.8,3945.2,2.17430083]
[1734463622562,0.005,3946.8,3945.8,2.17430083]
[1734463622747,0.005,3946.8,3945.6,2.17430083]
[1734463622748,0.005,3946.8,3946.7,2.17430083]
[1734463622945,0.005,3946.8,3946.7,5.88098801]
[1734463623265,3.10420605,3948.8,3946.9,0.8027]
[1734463623449,3.10420605,3948.8,3946.8,0.85128332]
[1734463623450,1.012616,3948.8,3947.1,0.8027]
[1734463623643,1.012616,3948.8,3947.3,2.17430083]
[1734463623848,1.012616,3948.8,3947.8,0.8027]
[1734463624044,2.33817337,3949.8,3948.1,2.17430083]
[1734463624045,0.7601,3949.8,3948.1,2.17430083]
[1734463624248,0.7601,3949.8,3947.9,0.17793107]
[1734463624249,2.8893171,3950.4,3948.6,0.8027]
[1734463624250,0.25,3950.4,3948.6,0.8027]
[1734463624495,3.3994171,3950.5,3948.6,0.8027]
[1734463624496,0.7601,3950.5,3948.6,2.09209869]
[1734463624788,0.88945837,3950.5,3948.7,0.28708399]
[1734463625085,0.88945837,3950.5,3948.8,2.28472477]
[1734463625086,1.05757165,3950.4,3948.8,2.28472477]
[1734463625302,0.88945837,3950.5,3948.8,2.17430083]
[1734463625453,0.88945837,3950.5,3949.6,2.17430083]
[1734463625805,0.88945837,3950.5,3949.6,2.39173091]
[1734463625944,0.7601,3950.5,3948.9,2.65542916]
[1734463626150,3.29148,3950.5,3948.6,0.8027]
[1734463626560,0.7601,3950.5,3948.8,2.65542916]
[1734463626890,2.53141,3950.4,3948.8,2.65542916]
[1734463627051,0.36711405,3950.3,3948.6,0.8027]
[1734463627446,3.36711405,3950.3,3948.6,0.8027]
[1734463627651,3.0,3950.2,3948.6,0.8027]
[1734463627847,3.0,3950.2,3947.5,3.0]
[1734463627848,0.7601,3950.0,3947.6,0.8027]
[1734463628288,0.55,3949.9,3947.6,0.8027]
[1734463628499,0.409177,3949.8,3947.7,0.35857233]
[1734463629004,0.55,3949.9,3947.7,0.35857233]
[1734463629181,2.53173,3949.9,3947.7,0.35857233]
[1734463629369,3.55,3949.8,3947.7,0.35857233]
[1734463630212,0.55,3949.7,3947.7,0.35857233]
[1734463630367,0.55,3949.7,3947.9,2.65542916]
[1734463630571,0.7601,3951.3,3949.1,0.8027]
[1734463630881,0.12749293,3951.0,3949.1,0.8027]
[1734463631507,0.7601,3951.3,3949.6,2.65542916]
[1734463633074,0.7601,3950.8,3948.7,0.8027]
[1734463633518,3.7601,3950.8,3948.7,0.8027]
[1734463633823,5.53121,3950.7,3948.7,0.8027]
[1734463634036,0.7601,3950.8,3948.7,0.8027]
[1734463634037,0.7601,3950.3,3948.7,0.8027]
[1734463634169,0.7601,3950.3,3947.9,0.12625502]
[1734463634368,3.0,3950.2,3947.7,3.01400149]
[1734463634802,0.7601,3950.3,3948.1,2.65542916]
[1734463634988,0.7601,3950.3,3948.2,0.26554292]
[1734463635371,0.7601,3950.3,3947.8,0.12826609]
[1734463635772,0.7601,3950.3,3948.1,2.65542916]
[1734463636191,0.7601,3950.3,3947.8,0.12826609]
[1734463636393,0.7601,3950.3,3947.7,2.65542916]
[1734463636623,0.7601,3949.5,3946.9,2.65542916]
[1734463636803,0.7601,3949.5,3946.1,0.35044151]
[1734463636804,0.59473792,3949.4,3947.3,2.65542916]
[1734463637003,0.7601,3949.5,3947.3,2.65542916]
[1734463637205,0.7601,3949.5,3947.7,2.65542916]
[1734463637403,0.7601,3949.5,3947.4,0.8027]
[1734463637824,2.53207,3949.4,3947.4,0.8027]
[1734463638320,3.29209,3949.5,3947.4,0.8027]
[1734463638631,2.65542916,3949.1,3947.4,0.8027]
[1734463638935,0.7601,3949.0,3947.4,0.8027]
[1734463639436,0.7601,3949.0,3947.5,0.02533003]
[1734463639639,0.7601,3949.0,3947.4,0.8027]
[1734463639640,0.7601,3949.4,3947.4,0.8027]
[1734463640243,2.53218,3949.2,3947.4,0.8027]
[1734463640420,0.7601,3949.4,3947.4,0.8027]
[1734463640421,0.329228,3949.1,3947.4,0.8027]
[1734463640729,0.329228,3949.1,3946.7,0.12656626]
[1734463640730,0.7601,3949.0,3946.7,0.8027]
[1734463641147,3.7601,3949.0,3946.7,0.8027]
[1734463641299,0.7601,3948.9,3946.7,0.8027]
[1734463641705,2.98465716,3949.1,3947.9,0.8027]
[1734463641706,0.329228,3949.1,3947.9,0.8027]
[1734463641905,0.7601,3949.3,3948.0,0.37114219]
[1734463642144,0.7601,3949.3,3948.0,0.34581292]
[1734463642299,0.7601,3949.3,3947.9,0.8027]
[1734463642831,0.25,3950.5,3947.9,0.8027]
[1734463642832,2.65542916,3950.5,3947.9,0.8027]
[1734463643135,0.7601,3950.4,3948.0,0.02532733]
[1734463643336,0.7601,3950.4,3948.1,0.8027]
[1734463643838,2.53153,3950.2,3948.1,0.8027]
[1734463644023,0.329163,3950.1,3948.1,0.8027]
[1734463644228,0.329163,3950.1,3948.2,0.10965659]
[1734463644398,0.329163,3950.1,3948.3,0.10967787]
[1734463644735,0.329163,3950.1,3948.1,0.8027]
[1734463644736,0.12626594,3950.0,3948.1,0.8027]
[1734463645034,0.12626594,3950.0,3948.2,0.10968675]
[1734463645237,2.65542916,3949.9,3948.1,0.8027]
[1734463645537,0.12626594,3950.0,3948.1,0.8027]
[1734463645538,0.31108581,3949.8,3948.2,0.10976942]
[1734463645736,0.12626594,3950.0,3948.2,0.10976184]
[1734463645902,0.7601,3949.8,3948.1,0.8027]
[1734463646337,0.7601,3949.8,3948.2,0.28571613]
[1734463646502,0.7601,3949.8,3948.3,0.10988164]
[1734463646700,0.7601,3949.8,3948.4,0.10988164]
[1734463646906,0.7601,3949.8,3948.1,0.8027]
[1734463647133,0.7601,3949.8,3948.2,0.10988647]
[1734463647337,0.7601,3949.8,3948.3,0.10988647]
[1734463647642,0.7601,3950.3,3948.9,0.8027]
[1734463647801,0.7601,3950.3,3949.0,0.28591349]
[1734463648004,0.7601,3950.3,3948.9,0.8027]
[1734463648005,0.7601,3950.3,3949.1,0.10988647]
[1734463648205,0.7601,3950.3,3948.9,0.8027]
[1734463648206,2.53159,3950.1,3948.9,0.8027]
[1734463648401,0.329169,3950.0,3948.9,0.8027]
[1734463648639,0.7601,3950.3,3948.9,0.8027]
[1734463648963,0.12784758,3950.7,3948.9,0.8027]
[1734463648964,0.88794758,3950.7,3948.9,0.8027]
[1734463649452,0.88794758,3950.7,3949.0,0.11039584]
[1734463649660,0.88794758,3950.7,3948.9,0.8027]
[1734463649805,0.88794758,3950.7,3949.0,0.11039707]
[1734463650117,0.88794758,3950.7,3948.9,0.8027]
[1734463650440,0.37064804,3950.7,3949.1,0.8027]
[1734463650606,0.1631037,3950.9,3949.2,0.91309578]
[1734463650805,0.1631037,3950.9,3949.2,0.8027]
[1734463654061,0.7543,3950.2,3948.9,0.1]
[1734463654353,2.53158,3950.1,3948.9,0.1]
[1734463654519,0.7543,3950.2,3948.9,0.1]
[1734463654520,2.98401716,3950.0,3948.9,0.1]
[1734463654723,2.65542916,3949.5,3948.9,0.1]
[1734463654952,0.7543,3949.3,3948.9,0.1]
[1734463655154,2.53221,3949.2,3948.9,0.1]
[1734463655957,3.28639,3949.3,3948.9,0.1]
[1734463656257,0.89418192,3949.2,3948.9,0.1]
[1734463656421,3.42635192,3949.2,3948.9,0.1]
[1734463657330,5.18770916,3949.0,3948.9,0.1]
[1734463658226,8.94200916,3949.0,3948.9,0.1]